fUSD/lending_fUSD_20250504
["ID","MTS","AMOUNT","RATE_DAILY","PERIOD"]
[359856042,1746375048135,-380.22,0.00019863,2]
[359856043,1746375048144,-928.26,0.00019863,2]
[359856044,1746375048154,-661.82,0.00019863,2]
[359856045,1746375048164,-520.73,0.00019863,2]
[359856046,1746375048175,-450.0,0.00019863,2]
[359856047,1746375048185,-450.0,0.00019863,2]
[359856048,1746375048196,-1306.66,0.00019863,2]
[359856049,1746375048207,-450.0,0.00019863,2]
[359856050,1746375048218,-450.0,0.00019863,2]
[359856051,1746375048228,-23936.99,0.00019863,2]
[359856052,1746375048237,-549.86,0.00019863,2]
[359856053,1746375048248,-450.0,0.00019863,2]
[359856054,1746375048258,-1342.3,0.00019863,2]
[359856055,1746375048269,-450.0,0.00019863,2]
[359856056,1746375048280,-4405.86,0.00019863,2]
[359856057,1746375048291,-450.0,0.00019863,2]
[359856058,1746375048302,-450.0,0.00019863,2]
[359856059,1746375048313,-450.0,0.00019863,2]
[359856060,1746375048322,-450.0,0.00019863,2]
[359856061,1746375048335,-450.0,0.00019863,2]
[359856062,1746375048344,-599.25,0.00019863,2]
[359856063,1746375048354,-544.47,0.00019863,2]
[359856064,1746375048364,-481.54,0.00019863,2]
[359856065,1746375048373,-3767.31,0.00019863,2]
[359856066,1746375048385,-450.0,0.00019863,2]
[359856067,1746375048396,-450.0,0.00019863,2]
[359856068,1746375048407,-450.0,0.00019863,2]
[359856069,1746375048417,-450.0,0.00019863,2]
[359856070,1746375048426,-450.0,0.00019863,2]
[359856071,1746375048437,-1886.44,0.00019863,2]
[359856072,1746375048448,-450.0,0.00019863,2]
[359856073,1746375048459,-35881.46,0.00019863,2]
[359856074,1746375048470,-450.0,0.00019863,2]
[359856075,1746375048481,-640.11,0.00019863,2]
[359856076,1746375048492,-276.44,0.00019863,2]
[359856077,1746375048502,-450.0,0.00019863,2]
[359856078,1746375048511,-1560.59,0.00019863,2]
[359856079,1746375048521,-450.0,0.00019863,2]
[359856080,1746375048531,-450.0,0.00019863,2]
[359856081,1746375048540,-622.5,0.00019863,2]
[359856082,1746375048550,-450.0,0.00019863,2]
[359856083,1746375048560,-1251.98,0.00019863,2]
[359856084,1746375048570,-660.92,0.00019863,2]
[359856085,1746375048580,-450.0,0.00019863,2]
[359856086,1746375048590,-450.0,0.00019863,2]
[359856087,1746375048602,-556.48,0.00019863,2]
[359856088,1746375048612,-450.0,0.00019863,2]
[359856089,1746375048622,-450.0,0.00019863,2]
[359856090,1746375048631,-450.0,0.00019863,2]
[359856091,1746375048643,-567.47,0.00019863,2]
[359856092,1746375048653,-1640.01,0.00019863,2]
[359856093,1746375048663,-310.05,0.00019863,2]
[359856094,1746375048672,-450.0,0.00019863,2]
[359856095,1746375048684,-450.0,0.00019863,2]
[359856096,1746375048694,-1828.94,0.00019863,2]
[359856097,1746375048704,-410.13999996,0.00019863,2]
[359856098,1746375048713,-12500.0,0.00019865,2]
[359856099,1746375048723,-1308.03868466,0.0001987,2]
[359856100,1746375048732,-500.0,0.00019873,2]
[359856101,1746375048742,-500.0,0.00019873,2]
[359856102,1746375048752,-500.0,0.00019873,2]
[359856103,1746375048762,-500.0,0.00019873,2]
[359856104,1746375048773,-500.0,0.00019873,2]
[359856105,1746375048783,-500.0,0.00019873,2]
[359856106,1746375048792,-500.0,0.00019873,2]
[359856107,1746375048802,-500.0,0.00019873,2]
[359856108,1746375048811,-187.65011133,0.00019873,2]
[359856109,1746375048822,-501.34605045,0.00019873,2]
[359856110,1746375048832,-502.14334775,0.00019873,2]
[359856111,1746375048844,-500.0,0.00019873,2]
[359856112,1746375048854,-500.0,0.00019873,2]
[359856113,1746375048864,-500.0,0.00019873,2]
[359856114,1746375048874,-500.0,0.00019873,2]
[359856115,1746375048884,-12500.0,0.00019874,2]
[359856116,1746375048894,-12500.0,0.00019882,2]
[359856117,1746375048904,-1140.0,0.00019883,2]
[359856118,1746375048914,-2407.839,0.00019886,2]
[359856119,1746375048924,-164.627,0.00019886,2]
[359856120,1746375048934,-902.0,0.0001989,2]
[359856121,1746375048944,-448.2887728,0.0001989,2]
[359856122,1746375048954,-450.0,0.0001989,2]
[359856123,1746375048963,-493.46,0.0001989,2]
[359856124,1746375048973,-450.0,0.0001989,2]
[359856125,1746375048983,-608.95,0.0001989,2]
[359856126,1746375048993,-444.78,0.0001989,2]
[359856127,1746375049003,-511.85,0.0001989,2]
[359856128,1746375049012,-842.57,0.0001989,2]
[359856129,1746375049022,-450.0,0.0001989,2]
[359856130,1746375049032,-450.0,0.0001989,2]
[359856131,1746375049042,-450.0,0.0001989,2]
[359856132,1746375049052,-450.0,0.0001989,2]
[359856133,1746375049062,-420.62,0.0001989,2]
[359856134,1746375049073,-435.1,0.0001989,2]
[359856135,1746375049083,-867.09,0.0001989,2]
[359856136,1746375049094,-450.0,0.0001989,2]
[359856137,1746375049104,-530.52934709,0.0001989,2]
[359856138,1746375049114,-450.0,0.0001989,2]
[359856139,1746375049124,-450.0,0.0001989,2]
[359856140,1746375049134,-152.19,0.0001989,2]
[359856141,1746375049144,-1231.87,0.0001989,2]
[359856142,1746375049154,-928.26,0.0001989,2]
[359856143,1746375049164,-661.82,0.0001989,2]
[359856144,1746375049173,-520.73,0.0001989,2]
[359856145,1746375049184,-450.0,0.0001989,2]
[359856146,1746375049195,-450.0,0.0001989,2]
[359856147,1746375049205,-1306.66,0.0001989,2]
[359856148,1746375049360,-450.0,0.0001989,2]
[359856149,1746375049371,-433.34,0.0001989,2]
[359856150,1746375049383,-23936.99,0.0001989,2]
[359856151,1746375049392,-549.86,0.0001989,2]
[359856152,1746375049403,-450.0,0.0001989,2]
[359856153,1746375049412,-1342.3,0.0001989,2]
[359856154,1746375049422,-450.0,0.0001989,2]
[359856155,1746375049432,-4405.86,0.0001989,2]
[359856156,1746375049443,-350.36,0.0001989,2]
[359856157,1746375049453,-450.0,0.0001989,2]
[359856158,1746375049462,-450.0,0.0001989,2]
[359856159,1746375049472,-450.0,0.0001989,2]
[359856160,1746375049481,-450.0,0.0001989,2]
[359856161,1746375049491,-544.47,0.0001989,2]
[359856162,1746375049502,-481.54,0.0001989,2]
[359856163,1746375049511,-3767.31,0.0001989,2]
[359856164,1746375049522,-450.0,0.0001989,2]
[359856165,1746375049532,-416.78,0.0001989,2]
[359856166,1746375049541,-450.0,0.0001989,2]
[359856167,1746375049551,-395.58,0.0001989,2]
[359856168,1746375049561,-1886.44,0.0001989,2]
[359856169,1746375049571,-450.0,0.0001989,2]
[359856170,1746375049582,-35881.46,0.0001989,2]
[359856171,1746375049592,-450.0,0.0001989,2]
[359856172,1746375049606,-640.11,0.0001989,2]
[359856173,1746375049617,-450.0,0.0001989,2]
[359856174,1746375049627,-1560.59,0.0001989,2]
[359856175,1746375049636,-392.65372721,0.0001989,2]
[359856176,1746375049646,-450.0,0.0001989,2]
[359856177,1746375049656,-622.5,0.0001989,2]
[359856178,1746375049665,-547.49,0.0001989,2]
[359856179,1746375049675,-1251.98,0.0001989,2]
[359856180,1746375049685,-660.92,0.0001989,2]
[359856181,1746375049696,-450.0,0.0001989,2]
[359856182,1746375049705,-450.0,0.0001989,2]
[359856183,1746375049715,-450.0,0.0001989,2]
[359856184,1746375049724,-450.0,0.0001989,2]
[359856185,1746375049734,-450.0,0.0001989,2]
[359856186,1746375049745,-567.47,0.0001989,2]
[359856187,1746375049754,-1640.01,0.0001989,2]
[359856188,1746375049764,-450.0,0.0001989,2]
[359856189,1746375049774,-450.0,0.0001989,2]
[359856190,1746375049783,-1828.94,0.0001989,2]
[359856191,1746375049792,-12500.0,0.00019891,2]
[359856192,1746375049802,-153.0,0.00019891,2]
[359856193,1746375049811,-309.138,0.00019891,2]
[359856194,1746375049821,-4010.0,0.00019891,2]
[359856195,1746375049830,-6759.0,0.00019891,2]
[359856196,1746375049839,-186.45542849,0.00019899,2]
[359856197,1746375049849,-238.3836,0.00019899,2]
[359856198,1746375049859,-186.45542848,0.000199,2]
[359856199,1746375049868,-5800.0,0.000199,2]
[359856200,1746375049878,-186.45542848,0.000199,2]
[359856201,1746375049888,-915.11455533,0.000199,2]
[359856202,1746375049897,-5800.0,0.000199,2]
[359856203,1746375049906,-12500.0,0.000199,2]
[359856204,1746375049916,-1308.03868466,0.000199,2]
[359856205,1746375049926,-171.79080425,0.000199,2]
[359856206,1746375049935,-1048.0,0.000199,2]
[359856207,1746375049945,-166.24983903,0.000199,2]
[359856208,1746375049954,-12391.11368077,0.000199,2]
[359856209,1746375049964,-353.03858433,0.000199,2]
[359856210,1746375049973,-1155.26092188,0.000199,2]
[359856211,1746375049984,-9080.86615153,0.000199,2]
[359856212,1746375049993,-450.0,0.00019917,2]
[359856213,1746375050003,-232.609831,0.00019917,2]
[359856214,1746375050012,-608.95,0.00019917,2]
[359856215,1746375050022,-511.85,0.00019917,2]
[359856216,1746375050031,-842.57,0.00019917,2]
[359856217,1746375050041,-196.97,0.00019917,2]
[359856218,1746375050050,-450.0,0.00019917,2]
[359856219,1746375050060,-450.0,0.00019917,2]
[359856220,1746375050070,-450.0,0.00019917,2]
[359856221,1746375050080,-867.09,0.00019917,2]
[359856222,1746375050090,-441.48,0.00019917,2]
[359856223,1746375050100,-450.0,0.00019917,2]
[359856224,1746375050110,-450.0,0.00019917,2]
[359856225,1746375050120,-151.0,0.00019917,2]
[359856226,1746375050130,-1231.87,0.00019917,2]
[359856227,1746375050140,-928.26,0.00019917,2]
[359856228,1746375050150,-661.82,0.00019917,2]
[359856229,1746375050159,-520.73,0.00019917,2]
[359856230,1746375050169,-450.0,0.00019917,2]
[359856231,1746375050179,-488.73,0.00019917,2]
[359856232,1746375050188,-1306.66,0.00019917,2]
[359856233,1746375050198,-450.0,0.00019917,2]
[359856234,1746375050208,-23936.99,0.00019917,2]
[359856235,1746375050218,-549.86,0.00019917,2]
[359856236,1746375050227,-450.0,0.00019917,2]
[359856237,1746375050236,-1342.3,0.00019917,2]
[359856238,1746375050247,-450.0,0.00019917,2]
[359856239,1746375050258,-4405.86,0.00019917,2]
[359856240,1746375050267,-450.0,0.00019917,2]
[359856241,1746375050277,-450.0,0.00019917,2]
[359856242,1746375050287,-450.0,0.00019917,2]
[359856243,1746375050298,-450.0,0.00019917,2]
[359856244,1746375050308,-544.47,0.00019917,2]
[359856245,1746375050317,-481.54,0.00019917,2]
[359856246,1746375050326,-3767.31,0.00019917,2]
[359856247,1746375050336,-583.05,0.00019917,2]
[359856248,1746375050346,-309.21,0.00019917,2]
[359856249,1746375050356,-1886.44,0.00019917,2]
[359856250,1746375050367,-450.0,0.00019917,2]
[359856251,1746375050376,-35881.46,0.00019917,2]
[359856252,1746375050387,-450.0,0.00019917,2]
[359856253,1746375050398,-640.11,0.00019917,2]
[359856254,1746375050407,-450.0,0.00019917,2]
[359856255,1746375050416,-1560.59,0.00019917,2]
[359856256,1746375050426,-502.62,0.00019917,2]
[359856257,1746375050435,-622.5,0.00019917,2]
[359856258,1746375050444,-1251.98,0.00019917,2]
[359856259,1746375050453,-660.92,0.00019917,2]
[359856260,1746375050463,-421.63024881,0.00019917,2]
[359856261,1746375050472,-450.0,0.00019917,2]
[359856262,1746375050483,-450.0,0.00019917,2]
[359856263,1746375050492,-450.0,0.00019917,2]
[359856264,1746375050505,-450.0,0.00019917,2]
[359856265,1746375050515,-567.47,0.00019917,2]
[359856266,1746375050525,-1640.01,0.00019917,2]
[359856267,1746375050535,-450.0,0.00019917,2]
[359856268,1746375050545,-450.0,0.00019917,2]
[359856269,1746375050555,-1828.94,0.00019917,2]
[359856270,1746375050565,-151.0,0.0001993,2]
[359856271,1746375050574,-1300.0,0.0001993,2]
[359856272,1746375050584,-356.82,0.00019944,2]
[359856273,1746375050594,-450.0,0.00019945,2]
[359856274,1746375050606,-608.95,0.00019945,2]
[359856275,1746375050616,-511.85,0.00019945,2]
[359856276,1746375050626,-842.57,0.00019945,2]
[359856277,1746375050636,-412.92,0.00019945,2]
[359856278,1746375050646,-450.0,0.00019945,2]
[359856279,1746375050655,-450.0,0.00019945,2]
[359856280,1746375050665,-867.09,0.00019945,2]
[359856281,1746375050675,-450.0,0.00019945,2]
[359856282,1746375050684,-450.0,0.00019945,2]
[359856283,1746375050694,-1231.87,0.00019945,2]
[359856284,1746375050704,-928.26,0.00019945,2]
[359856285,1746375050714,-661.82,0.00019945,2]
[359856286,1746375050723,-520.73,0.00019945,2]
[359856287,1746375050734,-450.0,0.00019945,2]
[359856288,1746375050744,-1306.66,0.00019945,2]
[359856289,1746375050756,-450.0,0.00019945,2]
[359856290,1746375050766,-23936.99,0.00019945,2]
[359856291,1746375050776,-549.86,0.00019945,2]
[359856292,1746375050786,-450.0,0.00019945,2]
[359856293,1746375050796,-1342.3,0.00019945,2]
[359856294,1746375050807,-450.0,0.00019945,2]
[359856295,1746375050817,-4405.86,0.00019945,2]
[359856296,1746375050829,-450.0,0.00019945,2]
[359856297,1746375050840,-441.30585122,0.00019945,2]
[359856298,1746375050851,-450.0,0.00019945,2]
[359856299,1746375050860,-450.0,0.00019945,2]
[359856300,1746375050870,-544.47,0.00019945,2]
[359856301,1746375050879,-481.54,0.00019945,2]
[359856302,1746375050890,-3767.31,0.00019945,2]
[359856303,1746375050900,-1886.44,0.00019945,2]
[359856304,1746375050909,-450.0,0.00019945,2]
[359856305,1746375050918,-35881.46,0.00019945,2]
[359856306,1746375050929,-254.61,0.00019945,2]
[359856307,1746375050939,-640.11,0.00019945,2]
[359856308,1746375050949,-395.43,0.00019945,2]
[359856309,1746375050959,-1560.59,0.00019945,2]
[359856310,1746375050969,-622.5,0.00019945,2]
[359856311,1746375050979,-1251.98,0.00019945,2]
[359856312,1746375050988,-660.92,0.00019945,2]
[359856313,1746375050998,-450.0,0.00019945,2]
[359856314,1746375051009,-409.36,0.00019945,2]
[359856315,1746375051019,-434.78,0.00019945,2]
[359856316,1746375051029,-547.49748709,0.00019945,2]
[359856317,1746375051038,-567.47,0.00019945,2]
[359856318,1746375051048,-1640.01,0.00019945,2]
[359856319,1746375051059,-450.12,0.00019945,2]
[359856320,1746375051068,-450.0,0.00019945,2]
[359856321,1746375051079,-1828.94,0.00019945,2]
[359856322,1746375051090,-618.24406251,0.00019966,2]
[359856323,1746375051100,-450.0,0.00019972,2]
[359856324,1746375051111,-608.95,0.00019972,2]
[359856325,1746375051120,-511.85,0.00019972,2]
[359856326,1746375051130,-842.57,0.00019972,2]
[359856327,1746375051139,-450.0,0.00019972,2]
[359856328,1746375051149,-450.0,0.00019972,2]
[359856329,1746375051160,-867.09,0.00019972,2]
[359856330,1746375051169,-151.0,0.00019972,2]
[359856331,1746375051179,-151.0,0.00019972,2]
[359856332,1746375051190,-503.45,0.00019972,2]
[359856333,1746375051200,-450.0,0.00019972,2]
[359856334,1746375051209,-1231.87,0.00019972,2]
[359856335,1746375051218,-928.26,0.00019972,2]
[359856336,1746375051228,-661.82,0.00019972,2]
[359856337,1746375051237,-520.73,0.00019972,2]
[359856338,1746375051248,-450.0,0.00019972,2]
[359856339,1746375051259,-1306.66,0.00019972,2]
[359856340,1746375051269,-450.0,0.00019972,2]
[359856341,1746375051279,-23936.99,0.00019972,2]
[359856342,1746375051291,-549.86,0.00019972,2]
[359856343,1746375051301,-450.0,0.00019972,2]
[359856344,1746375051312,-1342.3,0.00019972,2]
[359856345,1746375051321,-450.0,0.00019972,2]
[359856346,1746375051332,-4405.86,0.00019972,2]
[359856347,1746375051342,-450.0,0.00019972,2]
[359856348,1746375051352,-450.0,0.00019972,2]
[359856349,1746375051363,-450.0,0.00019972,2]
[359856350,1746375051373,-544.47,0.00019972,2]
[359856351,1746375051382,-481.54,0.00019972,2]
[359856352,1746375051392,-3767.31,0.00019972,2]
[359856353,1746375051402,-1886.44,0.00019972,2]
[359856354,1746375051412,-450.0,0.00019972,2]
[359856355,1746375051424,-35881.46,0.00019972,2]
[359856356,1746375051434,-640.11,0.00019972,2]
[359856357,1746375051443,-1560.59,0.00019972,2]
[359856358,1746375051453,-622.5,0.00019972,2]
[359856359,1746375051462,-1251.98,0.00019972,2]
[359856360,1746375051471,-660.92,0.00019972,2]
[359856361,1746375051480,-450.0,0.00019972,2]
[359856362,1746375051489,-567.47,0.00019972,2]
[359856363,1746375051499,-1640.01,0.00019972,2]
[359856364,1746375051509,-450.0,0.00019972,2]
[359856365,1746375051519,-1828.94,0.00019972,2]
[359856366,1746375051528,-306.32642117,0.00019973,2]
[359856367,1746375051538,-203.8084593,0.00019973,2]
[359856368,1746375051547,-182.51930808,0.00019984,2]
[359856369,1746375051557,-336.93112025,0.00019984,2]
[359856370,1746375051566,-157.99818823,0.00019984,2]
[359856371,1746375051575,-500.0,0.00019984,2]
[359856372,1746375051585,-500.0,0.00019984,2]
[359856373,1746375051595,-500.0,0.00019984,2]
[359856374,1746375051606,-500.0,0.00019984,2]
[359856375,1746375051616,-500.0,0.00019984,2]
[359856376,1746375051625,-500.0,0.00019984,2]
[359856377,1746375051635,-500.0,0.00019984,2]
[359856378,1746375051644,-500.0,0.00019984,2]
[359856379,1746375051653,-500.0,0.00019984,2]
[359856380,1746375051663,-500.0,0.00019984,2]
[359856381,1746375051676,-500.0,0.00019984,2]
[359856382,1746375051686,-500.0,0.00019984,2]
[359856383,1746375051695,-500.0,0.00019984,2]
[359856384,1746375051705,-500.0,0.00019984,2]
[359856385,1746375051715,-500.0,0.00019984,2]
[359856386,1746375051724,-500.0,0.00019984,2]
[359856387,1746375051733,-500.0,0.00019984,2]
[359856388,1746375051746,-500.0,0.00019984,2]
[359856389,1746375051756,-500.0,0.00019984,2]
[359856390,1746375051767,-636.57703508,0.00019984,2]
[359856391,1746375051777,-346.12920958,0.00019985,2]
[359856392,1746375051788,-844.1645092,0.00019985,2]
[359856393,1746375051797,-151.0,0.00019985,2]
[359856394,1746375051807,-169.46723966,0.00019985,2]
[359856395,1746375051817,-56874.1915237,0.00019985,2]
[359856396,1746375051828,-474.43047593,0.00019985,2]
[359856397,1746375051839,-227085.01082613,0.00019986,2]
[359856398,1746375052079,-450.0,0.00019986,2]
[359856399,1746375052092,-972.18582414,0.00019986,2]
[359856400,1746375052108,-10267.07414325,0.00019986,2]
[359856401,1746375052125,-350.0,0.00019986,2]
[359856402,1746375052137,-748.44104968,0.00019986,2]
[359856403,1746375052317,-450.0,0.00019726,2]
[359856404,1746375052327,-310.8688472,0.00019778,2]
[359856405,1746375052337,-878.0,0.00019891,2]
[359856406,1746375052346,-151.0,0.00019917,2]
[359856407,1746375052358,-91490.55801437,0.00019986,2]
[359856408,1746375052369,-14720.337023,0.00019986,2]
[359856409,1746375052529,-12841.5590194,0.00019986,2]
[359856410,1746375052540,-7530.94247775,0.00019986,2]
[359856411,1746375052552,-450.319,0.00019986,2]
[359856412,1746375052564,-14194.98374683,0.00019986,2]
[359856413,1746375052589,-162857.06034015,0.00019986,2]
[359856414,1746375052647,-470.50368502,0.00019726,2]
[359856415,1746375052656,-151.0,0.00019917,2]
[359856416,1746375052666,-151.0,0.00019985,2]
[359856417,1746375052676,-8806.36561498,0.00019986,2]
[359856418,1746375052688,-500.0,0.00019986,2]
[359856419,1746375052698,-106705.89552612,0.00019986,2]
[359856420,1746375052710,-104397.59102731,0.00019986,2]
[359856421,1746375052719,-151.0,0.00019986,2]
[359856422,1746375052730,-151.0,0.00019986,2]
[359856423,1746375052740,-151.0,0.00019986,2]
[359856424,1746375052750,-151.0,0.00019986,2]
[359856425,1746375052759,-151.0,0.00019986,2]
[359856426,1746375052769,-63448.6662541,0.00019986,2]
[359856427,1746375052779,-70023.1409845,0.00019986,2]
[359856428,1746375052791,-76597.6157149,0.00019986,2]
[359856429,1746375052801,-83172.0904453,0.00019986,2]
[359856430,1746375052811,-217.11897616,0.0001999,2]
[359856431,1746375052820,-283.32233728,0.00019998,2]
[359856432,1746375052829,-300.0,0.00019999,2]
[359856433,1746375052839,-500.0,0.00019999,2]
[359856434,1746375052849,-666.0,0.00019999,2]
[359856435,1746375052858,-40492.81925753,0.00019999,7]
[359856436,1746375052868,-195.802605,0.00019999,2]
[359856437,1746375052877,-151.0,0.00019999,2]
[359856438,1746375052887,-151.0,0.00019999,2]
[359856439,1746375052896,-298.001154,0.00019999,2]
[359856440,1746375052905,-151.0,0.00019999,2]
[359856441,1746375052915,-382.44325187,0.00019999,2]
[359856442,1746375052926,-187.86392371,0.00019999,2]
[359856443,1746375052936,-159.0,0.00019999,2]
[359856444,1746375052947,-268.52922541,0.00019999,2]
[359856445,1746375052957,-791736.31850346,0.0002,2]
[359856446,1746375052974,-310.8688472,0.00019809,2]
[359856447,1746375052984,-792.2164198,0.0002,2]
[359856448,1746375052995,-284.28049992,0.0002,2]
[359856449,1746375053007,-705.7275672,0.0002,2]
[359856450,1746375053019,-41005.98904047,0.0002,2]
[359856451,1746375053031,-26205.76030254,0.0002,2]
[359856452,1746375053163,-256.67894133,0.00019726,2]
[359856453,1746375053208,-193.32105867,0.00019726,2]
[359856454,1746375053218,-450.0,0.00019726,2]
[359856455,1746375053229,-450.0,0.00019753,2]
[359856456,1746375053238,-450.0,0.0001978,2]
[359856457,1746375053248,-450.0,0.00019808,2]
[359856458,1746375053258,-450.0,0.00019835,2]
[359856459,1746375053268,-310.8688472,0.00019839,2]
[359856460,1746375053278,-1268.13976335,0.000199,2]
[359856461,1746375053288,-31351.36826145,0.0002,2]
[359856462,1746375053305,-539.48,0.00019863,2]
[359856463,1746375053314,-699445.11609598,0.0002,2]
[359856464,1746375053330,-742.14000001,0.0002,2]
[359856465,1746375053347,-450.0,0.00019726,2]
[359856466,1746375053356,-2553.79941483,0.0002,2]
[359856467,1746375053368,-21660.1472,0.0002,2]
[359856468,1746375053709,189.07,0.00018949,2]
[359856469,1746375057181,1000.0,0.00019163,2]
[359856470,1746375078872,351.87,0.00019052,2]
[359856471,1746375097075,150.0,0.00019033,2]
[359856472,1746375207370,374.464739,0.0003,30]
[359856473,1746375208833,374.464739,0.0003,32]
[359856474,1746375209117,374.464739,0.0003,33]
[359856475,1746375209469,374.464739,0.0003,33]
[359856476,1746375209750,374.464739,0.0003,33]
[359856477,1746375210037,374.464739,0.0003,33]
[359856478,1746375210335,374.464739,0.0003,33]
[359856479,1746375210676,374.464739,0.0003,35]
[359856480,1746375210923,374.464739,0.00029829,35]
[359856481,1746375211212,374.464739,0.00029658,35]
[359856482,1746375211508,476.39,0.0001898,2]
[359856483,1746375211541,374.464739,0.00029486,35]
[359856484,1746375211824,374.464739,0.00029315,35]
[359856485,1746375213650,374.464739,0.0003,31]
[359856486,1746375213940,374.464739,0.0003,31]
[359856487,1746375214222,374.464739,0.0003,31]
[359856488,1746375214661,374.464739,0.0003,31]
[359856489,1746375214951,374.464739,0.0003,31]
[359856491,1746375367884,261.38,0.000298,31]
[359856492,1746375367940,261.38,0.000298,31]
[359856493,1746375368000,261.38,0.000298,31]
[359856494,1746375368062,261.38,0.000298,31]
[359856495,1746375368129,261.38,0.000298,31]
[359856496,1746375368182,261.38,0.000298,31]
[359856497,1746375368254,261.38,0.000298,31]
[359856498,1746375368302,261.38,0.000298,31]
[359856499,1746375368363,261.38,0.000298,31]
[359856500,1746375368420,261.38,0.000298,31]
[359856501,1746375368487,261.38,0.000298,31]
[359856502,1746375368544,261.38,0.000298,31]
[359856503,1746375368606,261.38,0.000298,31]
[359856504,1746375368666,261.38,0.000298,31]
[359856505,1746375368729,261.38,0.000298,31]
[359856506,1746375368789,261.38,0.000298,31]
[359856507,1746375469868,2340.17,0.00018879,2]
[359856508,1746375479472,293.99533221,0.00027397,30]
[359856509,1746375500483,-300.0,0.00019625,2]
[359856510,1746375500505,-878.12082968,0.00019626,2]
[359856511,1746375500528,-296.84888901,0.00019626,2]
[359856512,1746375500551,-12359.1071,0.00019626,2]
[359856513,1746375500573,-1132.8202,0.00019626,2]
[359856514,1746375500597,-296.84888896,0.00019656,2]
[359856515,1746375500621,-195.0154014,0.00019699,2]
[359856516,1746375500644,-1200.0,0.00019699,2]
[359856517,1746375500666,-300.0,0.00019699,2]
[359856518,1746375500688,-1000.0,0.000197,2]
[359856519,1746375500710,-1000.0,0.000197,2]
[359856520,1746375500732,-1000.0,0.000197,2]
[359856521,1746375500754,-1000.0,0.000197,2]
[359856522,1746375500776,-1000.0,0.000197,2]
[359856523,1746375500798,-1000.0,0.000197,2]
[359856524,1746375500820,-1000.0,0.000197,2]
[359856525,1746375500841,-1000.0,0.000197,2]
[359856526,1746375500863,-217.44587564,0.000197,2]
[359856527,1746375500889,-207.4,0.00019714,2]
[359856528,1746375500913,-500.0,0.00019725,2]
[359856529,1746375500937,-168.0354608,0.00019725,2]
[359856530,1746375500963,-500.0,0.00019725,2]
[359856531,1746375500986,-500.0,0.00019725,2]
[359856532,1746375501010,-500.0,0.00019725,2]
[359856533,1746375501036,-252.46651212,0.00019725,2]
[359856534,1746375501058,-242.22,0.00019726,2]
[359856535,1746375501080,-450.0,0.00019726,2]
[359856536,1746375501103,-450.0,0.00019726,2]
[359856537,1746375501126,-450.0,0.00019726,2]
[359856538,1746375501148,-450.0,0.00019726,2]
[359856539,1746375501171,-450.0,0.00019726,2]
[359856540,1746375501193,-450.0,0.00019726,2]
[359856541,1746375501216,-470.0,0.00019726,2]
[359856542,1746375501244,-450.0,0.00019726,2]